[Event "44th Chess Olympiad Open 2022"]
[Site "Chennai"]
[Date "2022.08.06"]
[Round "8.29"]
[White "Kojima, Shinya"]
[Black "Gundavaa, Bayarsaikhan"]
[Result "0-1"]
[WhiteElo "2346"]
[BlackElo "2503"]
[Annotator "TA"]
[PlyCount "94"]
[EventDate "2022.??.??"]
[TimeControl "60"]

{[%evp 9,94,10,23,8,8,0,0,0,5,0,0,0,0,0,0,-14,0,0,12,0,0,0,0,-32,-43,-41,-34,
-90,-78,-113,-116,-145,-148,-169,-174,-165,-165,-179,-173,-250,-245,-243,-251,
-257,-265,-323,-290,-351,-341,-445,-321,-331,-218,-365,-279,-487,-490,-1150,
-1306,-1247,-1026,-2122,-2060,-2354,-2306,-29988,-29983,-2966,-1758,-29975,
-29976,-29976,-904,-29977,-29978,-29978,-29979,-29979,-29980,-29978,-29979,
-29994,-29995,-29997,-29996,-29997,-29997]} 1. e4 {[%emt 0:00:05]} c5 {[%emt 0:
00:00]} 2. Nf3 {[%emt 0:00:04]} d6 {[%emt 0:00:23]} 3. Bb5+ {[%emt 0:00:10]}
Nd7 {[%emt 0:00:16]} 4. Ba4 {[%emt 0:00:22]} Ngf6 {[%emt 0:00:08]} 5. O-O {
[%emt 0:00:11]} e6 {[%emt 0:02:14]} 6. d3 {[%emt 0:00:47] B51: Sicilian:
Moscow Variation (3 Bb5+) without 3...Bd7.} a6 {[%emt 0:01:00]} 7. c4 {[%emt 0:
00:00]} Be7 {[%emt 0:01:34]} 8. Nc3 {[%emt 0:00:11] The position is equal.} O-O
{[%emt 0:00:17]} 9. h3 {[%emt 0:03:28]} Qc7 {[%emt 0:08:29]} 10. Re1 {[%emt 0:
00:00]} Ne5 {[%emt 0:00:55] [#]} 11. Be3 $146 {[%emt 0:03:23]} ({Predecessor:} 
11. Bf4 Bd7 12. Bc2 b5 13. Bxe5 dxe5 14. cxb5 axb5 15. a4 bxa4 16. Bxa4 Rab8
17. Qc2 {1-0 (152) Afanasiev,N (2519)-Pingin,A (2244) Khanty-Mansiysk 2020})
11... Nfd7 {[%emt 0:00:35]} 12. Rb1 {[%emt 0:05:21]} Bf6 {[%emt 0:04:51]} 13.
Nh2 {[%emt 0:02:01]} Nc6 {[%emt 0:04:37]} 14. Ng4 {[%emt 0:03:33]} Bd4 {
[%emt 0:01:18]} 15. Bxc6 {[%emt 0:10:42]} bxc6 {[%emt 0:03:39]} 16. Bxd4 {
[%emt 0:01:15]} cxd4 {[%emt 0:00:06]} 17. Ne2 {[%emt 0:00:12]} e5 {[%emt 0:00:
00]} 18. Ng3 {[%emt 0:05:35]} (18. a3 $15) 18... a5 $17 {[%emt 0:09:42] White
is now going downhill.} 19. Qf3 {[%emt 0:09:16]} f6 {[%emt 0:02:53]} 20. h4 {
[%emt 0:08:55]} Nc5 {[%emt 0:04:02]} 21. Red1 {[%emt 0:00:34]} Qd7 {[%emt 0:00:
00]} 22. Nh2 {[%emt 0:04:15]} g6 {[%emt 0:02:40]} 23. h5 {[%emt 0:08:34]} Qg7 {
[%emt 0:00:00]} 24. hxg6 {[%emt 0:01:24]} (24. b3 {might work better.}) 24...
hxg6 $19 {[%emt 0:00:00]} 25. Qe2 {[%emt 0:00:49]} f5 {[%emt 0:04:08]} 26. f3 {
[%emt 0:02:04]} Ra7 {[%emt 0:02:11]} 27. Nhf1 {[%emt 0:03:06]} Qf6 {[%emt 0:00:
00]} ({Don't blunder} 27... f4 $2 28. Nh1 $17) 28. Nh1 {[%emt 0:08:23]} Rh7 {
[%emt 0:04:19]} 29. Nf2 {[%emt 0:05:09]} Kg7 {[%emt 0:00:00] White must now
prevent ...Ne6.} 30. Qd2 {[%emt 0:02:05]} Qd8 {[%emt 0:00:00] ...fxe4 is the
strong threat.} 31. b3 {[%emt 0:01:18]} (31. Re1 $142) 31... Rfh8 {[%emt 0:00:
00] Hoping for ...Ne6.} 32. a3 $2 {[%emt 0:01:08]} (32. exf5 gxf5 33. f4) 32...
Ne6 {[%emt 0:00:00]} 33. g3 {[%emt 0:01:36] Inhibits Nf4.} (33. exf5 $142 gxf5
34. Nh3) 33... f4 {[%emt 0:01:52] Strongly threatening ...fxg3.} 34. g4 {
[%emt 0:00:27]} Rh4 {[%emt 0:00:07] aiming for ...Ng5.} 35. b4 {[%emt 0:00:30]}
Ng5 {[%emt 0:01:00]} 36. Kg2 {[%emt 0:00:33]} Qg8 {[%emt 0:04:27]} 37. b5 {
[%emt 0:00:27]} Qh7 {[%emt 0:03:39]} 38. Qxa5 {[%emt 0:00:31] [#]} Rh1 $1 {
[%emt 0:04:14][%cal Yh7h2] ( -> ...Qh2+!)} 39. Qc7+ {[%emt 0:00:25]} (39. Qa7+
Nf7) 39... Nf7 {[%emt 0:00:03]} 40. Nxh1 {[%emt 0:00:31]} Qxh1+ {[%emt 0:00:08]
} 41. Kf2 {[%emt 0:30:10] [#]} Rh3 $1 {[%emt 0:31:06][%cal Yh8h3,Yh3f3,Yf3f2,
Yf2c2] Black mates.} 42. Ke1 {[%emt 0:00:00]} Rxf3 {[%emt 0:00:00]} 43. Kd2 {
[%emt 0:00:00]} Rf2+ {[%emt 0:00:00]} 44. Kc1 {[%emt 0:00:00]} Bxg4 {[%emt 0:
00:00]} 45. b6 {[%emt 0:00:00]} Bxd1 {[%emt 0:00:00]} 46. b7 {[%emt 0:00:00]}
Rc2+ {[%emt 0:00:00]} 47. Kxd1 {[%emt 0:00:00]} Rf2 {[%emt 0:00:00] Weighted
Error Value: White=0.87/Black=0.22 (precise)} 0-1

[Event "44th Chess Olympiad Open 2022"]
[Site "Chennai"]
[Date "2022.08.06"]
[Round "8.29"]
[White "Kobayashi, Atsuhiko"]
[Black "Gan-Erdene, Sugar"]
[Result "0-1"]
[WhiteElo "2156"]
[BlackElo "2428"]
[Annotator "TA"]
[PlyCount "72"]
[EventDate "2022.??.??"]
[TimeControl "60"]

{[%evp 13,72,16,44,-110,31,2,15,7,37,22,102,0,0,0,0,0,-2,-10,-9,-28,0,-1,-1,
-80,-56,-84,-49,-40,-52,-39,-40,-135,-71,-70,-61,-81,-33,-103,-82,-89,-116,
-252,-268,-423,-410,-497,-103,-172,-181,-563,-289,-293,-296,-247,-278,-280,
-267,-244,-252,-29998,-29999]} 1. d4 {[%emt 0:00:04]} Nf6 {[%emt 0:00:13]} 2.
c4 {[%emt 0:00:06]} g6 {[%emt 0:00:10]} 3. Nc3 {[%emt 0:00:07]} Bg7 {[%emt 0:
00:00]} 4. e4 {[%emt 0:00:06]} d6 {[%emt 0:00:11]} 5. h3 {[%emt 0:00:05]} O-O {
[%emt 0:00:46]} 6. Bg5 {[%emt 0:00:06]} c5 {[%emt 0:12:32]} 7. d5 {[%emt 0:00:
00]} Qa5 {[%emt 0:03:39] aiming for ...Nxe4.} 8. Bd3 {[%emt 0:06:00] [#] E71:
King's Indian: 4 e4 d6 5 h3.} (8. Qd2 $14 {keeps the upper hand.}) 8... e6 {
[%emt 0:04:31]} (8... Nxe4 $1 $17 9. Bxe4 Bxc3+ 10. Bd2 (10. bxc3 Qxc3+ 11. Kf1
Qe5 $17) 10... Bxd2+ 11. Qxd2 Qxd2+ 12. Kxd2 Nd7) 9. Bd2 {[%emt 0:03:16]} exd5
{[%emt 0:03:12]} 10. exd5 {[%emt 0:05:43] The position is equal.} Nbd7 {
[%emt 0:02:53][%cal Yb8d7,Yd7f6,Yf6e4,Ye4c3]} 11. f4 {[%emt 0:04:08]} Nh5 {
[%emt 0:17:20]} (11... Qd8 $11) 12. Nge2 {[%emt 0:01:52]} (12. g4 $1 $16 {
[%cal Rg4h5]} Nhf6 13. Nf3) 12... Qd8 $1 $11 {[%emt 0:09:15]} 13. O-O {[%emt 0:
02:38]} f5 $1 {[%emt 0:01:29]} 14. Qc2 {[%emt 0:03:00] [#]} Ndf6 $146 {[%emt 0:
01:10]} ({Predecessor:} 14... Re8 15. Rae1 Nf8 16. Kh2 a6 17. g3 Bd7 18. a4 Qc7
19. b3 Re7 20. Ng1 Rae8 21. Rxe7 Rxe7 {½-½ (93) Damljanovic,B (2587)
-Guseinov,G (2505) Istanbul 2003}) 15. a3 {[%emt 0:02:47]} Bd7 {[%emt 0:00:00]}
16. b4 {[%emt 0:01:11]} Qc7 {[%emt 0:03:48][%cal Yf6e4]} 17. Be3 {[%emt 0:06:
34]} Rae8 {[%emt 0:01:38]} 18. Rf3 {[%emt 0:01:22]} (18. Qd2 $11 {keeps the
balance.}) 18... Ne4 {[%emt 0:08:52] Threatens to win with . ..Nxc3.} 19. Kh2 {
[%emt 0:10:51]} Nxc3 {[%emt 0:04:08] Black is more active.} 20. Nxc3 {[%emt 0:
00:08] [#]} Rxe3 $1 {[%emt 0:03:02]} 21. Rxe3 {[%emt 0:00:46]} Nxf4 {[%emt 0:
00:22] Strongly threatening ...cxb4.} 22. Rae1 {[%emt 0:06:38]} (22. Rf3 $1 $15
Be5 23. g3 cxb4 24. axb4 Nxd3 25. Qxd3) 22... Be5 {[%emt 0:00:00]} (22... cxb4
$142 23. Nb5 (23. axb4 Bxc3 24. Qxc3 Nxd5 $17) 23... Qc5 24. axb4 Qxb4) 23. Kh1
{[%emt 0:01:09]} cxb4 {[%emt 0:02:36]} 24. axb4 {[%emt 0:00:00][%cal Yc4c5]}
Qb6 {[%emt 0:01:01] Against c5} ({Black should try} 24... Bxc3 $17 25. Qxc3
Nxd5) 25. Qb3 {[%emt 0:19:05]} (25. Nb5 $1 $15 Bxb5 26. cxb5) 25... Qd4 {
[%emt 0:01:38][%csl Yc3,Yd3]} 26. Bf1 {[%emt 0:00:33]} Nh5 $36 {[%emt 0:02:15]
Inhibits g3. ...Qh4 is the strong threat. White is under strong pressure.} 27.
Ne2 {[%emt 0:00:35] [#]} (27. c5 $17) 27... Qh4 $1 $19 {[%emt 0:00:52]} 28. g3
{[%emt 0:00:54] [#]} (28. Rd1 {was worth a try.} f4 29. Re4) 28... Nxg3+ $1 {
[%emt 0:04:41]} 29. Nxg3 {[%emt 0:04:18]} (29. Rxg3 f4) 29... Bxg3 {[%emt 0:00:
32] A strong pair of Bishops.} (29... f4 $19 {and Black stays clearly on top.}
30. Rf3 (30. Rxe5 $2 dxe5 31. Kg1 fxg3 $19) 30... Bxh3 31. Rxe5 Bg4+ 32. Kg2
Bxf3+ 33. Qxf3 fxg3 34. Qxg3 Qxg3+ 35. Kxg3 dxe5) 30. R1e2 {[%emt 0:06:09]} (
30. Rxg3 $17 {might work better.} f4 31. Kh2) 30... f4 {[%emt 0:02:07][%csl
Ye3,Yh3]} 31. Rf3 {[%emt 0:00:30]} (31. Re6 {was the crucial defense.}) 31...
g5 {[%emt 0:02:46]} 32. Kg1 {[%emt 0:00:00]} Bxh3 {[%emt 0:01:46]} 33. Bxh3 {
[%emt 0:04:04]} Qxh3 {[%emt 0:00:04]} 34. Rg2 {[%emt 0:04:13]} Re8 {[%emt 0:00:
40] ( -> ...Re1+)} 35. Rfxg3 {[%emt 0:00:00]} fxg3 {[%emt 0:00:54] Really
sharp!} 36. Rxg3 $2 {[%emt 0:01:20]} (36. Qxg3 $19 Qxg3 37. Rxg3) 36... Re1+ {
[%emt 0:00:06] Weighted Error Value: White=0.70/ Black=0.41} 0-1

[Event "44th Chess Olympiad Open 2022"]
[Site "Chennai"]
[Date "2022.08.06"]
[Round "8.30"]
[White "Megaranto, Susanto"]
[Black "Al Qudaimi, Basheer"]
[Result "1-0"]
[WhiteElo "2529"]
[BlackElo "2424"]
[Annotator "TA"]
[PlyCount "110"]
[EventDate "2022.??.??"]
[TimeControl "60"]

{[%evp 9,110,4,18,8,10,8,10,13,13,7,17,0,4,0,0,-35,-20,-32,-16,-21,-20,-10,-9,
-20,-19,-27,-14,-9,-9,-10,-9,-8,-11,-7,-5,-9,0,-23,0,-57,-57,-72,-18,-21,-31,
-24,55,-2,-16,-42,-33,-76,21,21,21,22,207,210,205,198,210,179,216,220,217,211,
206,201,226,214,209,211,218,205,204,233,210,220,198,218,218,216,220,214,218,
214,208,198,234,227,227,194,182,162,252,205,206,206,187,186,1139,956,2708]} 1.
d4 {[%emt 0:00:05]} Nf6 {[%emt 0:01:51]} 2. Nf3 {[%emt 0:00:13]} e6 {[%emt 0:
00:00]} 3. c4 {[%emt 0:00:12]} Bb4+ {[%emt 0:01:05]} 4. Nbd2 {[%emt 0:01:22]}
d5 {[%emt 0:00:33]} 5. e3 {[%emt 0:00:24]} Nbd7 {[%emt 0:01:03]} 6. a3 {
[%emt 0:00:19] E11: Bogo-Indian.} Be7 {[%emt 0:00:11]} 7. Bd3 {[%emt 0:03:03]}
c5 {[%emt 0:00:47]} 8. O-O {[%emt 0:02:39] The position is equal.} O-O {
[%emt 0:00:56]} 9. b3 {[%emt 0:01:19]} b6 {[%emt 0:01:13] [#]} 10. cxd5 $5 $146
{[%emt 0:08:48] An interesting novelty.} ({Predecessor:} 10. Bb2 Bb7 11. Qe2
Rc8 12. Rfd1 Qc7 13. Rac1 Qb8 14. Bb1 dxc4 15. Nxc4 cxd4 16. Nxd4 Nc5 17. b4
Ncd7 18. e4 Rfd8 19. e5 {1-0 (35) Samadov,R (2375)-Meskovs,N (2561) Terme
Catez 2022}) 10... Nxd5 11. Nc4 {[%emt 0:12:44]} cxd4 {[%emt 0:00:32]} 12. exd4
{[%emt 0:00:00]} Bb7 {[%emt 0:06:50]} 13. Bd2 {[%emt 0:00:00]} Rc8 {[%emt 0:05:
42]} 14. Rc1 {[%emt 0:00:09]} a6 {[%emt 0:12:42]} 15. b4 {[%emt 0:00:00]} b5 {
[%emt 0:06:18]} 16. Na5 {[%emt 0:00:45]} Rxc1 {[%emt 0:00:51]} 17. Qxc1 {
[%emt 0:00:20]} Qa8 {[%emt 0:01:40]} 18. Qb1 {[%emt 0:01:20]} g6 {[%emt 0:03:
25]} 19. h4 {[%emt 0:03:19]} Rc8 {[%emt 0:04:03] Strongly threatening ...Nc3.}
20. Nxb7 {[%emt 0:00:20]} Qxb7 {[%emt 0:00:03]} 21. h5 {[%emt 0:00:20][%cal
Rh5g6]} Kg7 {[%emt 0:03:56]} 22. Re1 {[%emt 0:02:48]} Bf6 {[%emt 0:03:31]} 23.
Qb3 {[%emt 0:23:08]} Qa7 {[%emt 0:05:42]} (23... N7b6 $5 {[%cal Rb6c4]}) 24.
Re4 {[%emt 0:00:23]} (24. a4 $11) 24... N7b6 $15 {[%emt 0:00:00]} 25. Ne5 {
[%emt 0:06:58] Against Nc4} Qc7 {[%emt 0:02:26]} (25... Qe7 $17) 26. Ng4 $11 {
[%emt 0:04:12]} Be7 {[%emt 0:01:40]} 27. Re1 {[%emt 0:10:26]} Nf4 {[%emt 0:08:
11]} ({Black should play} 27... Bd6 $11) 28. d5 {[%emt 0:05:40]} (28. Rc1 $1
$14 Qxc1+ 29. Bxc1 Rxc1+ 30. Kh2) 28... Nbxd5 {[%emt 0:03:49]} 29. h6+ {
[%emt 0:01:53]} Kg8 {[%emt 0:01:38]} ({Much weaker is} 29... Kh8 30. Qb2+ f6
31. Bf1 $11) 30. Be4 {[%emt 0:01:16]} Nf6 {[%emt 0:10:53]} (30... Nc3 $17 {
aiming for ...Nfe2+.} 31. g3 Nfe2+ 32. Kh2 Nxe4) 31. Nxf6+ {[%emt 0:01:22]}
Bxf6 {[%emt 0:00:02]} 32. Qf3 $36 {[%emt 0:00:20] White is pushing.} e5 {
[%emt 0:04:05] Loses the game.} (32... Bg5 $1 $11 {and Black stays safe.}) 33.
g3 $1 $18 {[%emt 0:01:51]} Nh5 {[%emt 0:03:39]} 34. Be3 {[%emt 0:00:44]} Be7 {
[%emt 0:01:09]} 35. Rc1 {[%emt 0:01:40]} ({Not} 35. Bd5 Nf6 $11) 35... Qb8 {
[%emt 0:00:27]} 36. Rxc8+ {[%emt 0:00:16]} Qxc8 {[%emt 0:00:00]} 37. Bb7 {
[%emt 0:00:16]} Qe6 {[%emt 0:00:56]} 38. Bd5 {[%emt 0:00:28] White has strong
compensation. This bishop pair is nice.} Qf6 {[%emt 0:01:07]} 39. Qg4 {[%emt 0:
02:09]} Qd6 {[%emt 0:01:46]} 40. Qc8+ {[%emt 0:01:45]} Qd8 {[%emt 0:00:59] [#]}
41. Bb7 {[%emt 0:32:29]} Qxc8 {[%emt 0:06:43]} 42. Bxc8 {[%emt 0:00:00]
Endgame KBB-KBN} Nf6 {[%emt 0:00:01] [#]} 43. Bg5 $1 {[%emt 0:00:00]} ({
Don't do} 43. Bxa6 $6 Nd5 $16) 43... Kf8 {[%emt 0:01:59]} 44. Bxa6 {[%emt 0:00:
00]} Ng4 {[%emt 0:01:21]} 45. Bd2 {[%emt 0:00:00]} Bd8 {[%emt 0:00:01]} 46.
Bxb5 {[%emt 0:00:00]} Bb6 {[%emt 0:00:02]} 47. Be1 {[%emt 0:00:00]} Nxh6 {
[%emt 0:00:30]} 48. a4 {[%emt 0:00:00][%cal Ya3a4,Ya4a5]} Nf5 {[%emt 0:00:40]}
49. a5 {[%emt 0:00:00]} Bd4 {[%emt 0:01:45]} 50. Kg2 {[%emt 0:00:00] Black
must now prevent Ba4.} Ke7 {[%emt 0:01:38]} 51. Bc6 {[%emt 0:00:00]} Ba7 {
[%emt 0:02:52]} (51... Kd6 $142 52. Bf3 Kd7) 52. Ba4 {[%emt 0:00:00]} Kd6 {
[%emt 0:02:05]} 53. b5 {[%emt 0:00:00][%cal Yb4b5,Yb5b6] b6 is the strong
threat.} Bc5 {[%emt 0:00:01]} 54. b6 {[%emt 0:00:00][%cal Ye1b4] Threatens to
win with Bb4!} Nd4 $2 {[%emt 0:00:00] [#]} (54... Ne7 55. Kf3 f5) 55. Bb4 $1 {
[%emt 0:01:06]} Kd5 {[%emt 0:04:01] Weighted Error Value: White=0.08 (flawless)
/Black=0.19 (very precise)} (55... Bxb4 56. a6) 1-0

[Event "44th Chess Olympiad Open 2022"]
[Site "Chennai"]
[Date "2022.08.06"]
[Round "8.30"]
[White "Ervan, Mohamad"]
[Black "Al-Aqrabi, Saleh"]
[Result "1-0"]
[WhiteElo "2402"]
[BlackElo "2172"]
[Annotator "TA"]
[PlyCount "71"]
[EventDate "2022.??.??"]
[TimeControl "60"]

{[%evp 14,71,18,31,36,42,40,32,49,38,62,20,13,-23,48,52,218,209,210,210,216,
155,235,181,188,181,262,249,248,249,250,204,392,320,337,337,336,333,650,646,
2051,1699,2020,1994,2178,2070,2024,1823,1804,1802,2072,2018,29982,29979,5727,
2427,29974,8608,6444,3321]} 1. e4 {[%emt 0:00:06]} c6 {[%emt 0:00:27]} 2. Nf3 {
[%emt 0:00:12]} d5 {[%emt 0:00:08]} 3. Nc3 {[%emt 0:00:06]} Bg4 {[%emt 0:01:15]
} 4. h3 {[%emt 0:00:05]} Bh5 {[%emt 0:00:09]} 5. exd5 {[%emt 0:00:15]} cxd5 {
[%emt 0:00:27]} 6. Bb5+ {[%emt 0:00:13]} Nc6 {[%emt 0:00:22]} 7. g4 {[%emt 0:
00:00]} Bg6 {[%emt 0:00:06]} 8. Ne5 {[%emt 0:00:04]} Qc7 {[%emt 0:05:48] B11:
Caro-Kann: Two Knights Variation.} 9. d4 {[%emt 0:01:06] Threatens to win with
Bf4.} (9. Nxg6 hxg6 10. d4 e6 $11) 9... e6 {[%emt 0:00:16]} 10. Qe2 {[%emt 0:
00:00]} Bb4 {[%emt 0:07:52] White is slightly better.} 11. Bf4 {[%emt 0:17:58]}
Qb6 {[%emt 0:00:08]} 12. O-O {[%emt 0:01:25] White is more active.} Nge7 {
[%emt 0:00:39] [#]} 13. h4 $146 {[%emt 0:02:56] Strongly threatening a3.} ({
Predecessor:} 13. Rad1 a6 14. Bxc6+ bxc6 15. Bg3 Bxc3 16. bxc3 Qa5 17. h4 h6
18. Nxg6 Nxg6 19. h5 {1-0 (40) Farahat,A (2306)-Chimthere,A Lusaka 2005}) 13...
O-O {[%emt 0:10:56]} (13... Qxd4 $11 14. Nxd5 Qxd5) 14. Bxc6 $14 {[%emt 0:00:
00]} Qxd4 $2 {[%emt 0:06:21] This costs Black the game.} (14... Nxc6 $14 15.
Nxc6 Qxc6) 15. Nxg6 $18 {[%emt 0:01:53]} ({Stronger than} 15. Bxb7 Qxf4 16.
Bxa8 Bd6 $17) 15... Nxg6 {[%emt 0:00:43]} 16. Be3 {[%emt 0:00:33]} Qe5 {
[%emt 0:01:51]} 17. f4 {[%emt 0:03:12]} Qf6 {[%emt 0:02:04]} (17... Nxf4 $16
18. Bxf4 (18. Rxf4 Bxc3 19. Bxb7 Bxb2 $16) 18... Qxe2 19. Nxe2 bxc6) 18. Bb5 {
[%emt 0:01:45]} Qxh4 {[%emt 0:01:52]} 19. Kg2 {[%emt 0:04:15] Against Qg3+} Bd6
{[%emt 0:01:47] [#]} (19... f5 $142 20. Bd3 Qxg4+ 21. Qxg4 fxg4) 20. Bd3 $1 {
[%emt 0:02:04]} ({Don't do} 20. Rh1 $6 Qf6 $18) 20... f5 {[%emt 0:10:48]} 21.
Nb5 {[%emt 0:01:26][%csl Ya7,Yd6]} Bb8 {[%emt 0:09:56]} 22. Rh1 {[%emt 0:00:00]
} Qf6 {[%emt 0:00:38]} (22... Qxg4+ {is a better defense.} 23. Qxg4 fxg4 24.
Bxg6 hxg6) 23. g5 {[%emt 0:01:12]} Qe7 {[%emt 0:01:26]} 24. Raf1 {[%emt 0:00:
00]} a6 {[%emt 0:06:22]} 25. Nd4 {[%emt 0:00:49] Hoping for Qh5.} Bd6 $2 {
[%emt 0:00:39]} (25... Re8 26. Qf3 Nf8) 26. Qh5 {[%emt 0:01:09]} Rae8 {[%emt 0:
00:00]} 27. Qxh7+ {[%emt 0:01:15]} Kf7 {[%emt 0:00:04]} 28. Rh6 {[%emt 0:00:28]
} Nh4+ {[%emt 0:02:04]} 29. Rxh4 {[%emt 0:00:07][%cal Yh6h4,Yh4h8,Yh8e8]} Rh8 {
[%emt 0:00:00]} 30. Qxh8 {[%emt 0:00:47]} Rxh8 {[%emt 0:01:29]} 31. Rxh8 {
[%emt 0:00:04]} Bc5 {[%emt 0:00:57] [#]} 32. Nf3 $1 {[%emt 0:00:19][%cal Rf3e5]
} Qc7 {[%emt 0:01:05]} (32... Bd6 33. Bd4) 33. Bxc5 {[%emt 0:01:46]} Qxc5 {
[%emt 0:00:14]} 34. Kg3 {[%emt 0:01:16] Intending Re1 and mate.} Ke7 {[%emt 0:
00:00]} 35. Re1 {[%emt 0:00:22] Threatening mate with Bxf5.} Kd6 {[%emt 0:00:
00]} 36. Re8 {[%emt 0:00:14] Weighted Error Value: White=0.17 (very precise) /
Black=1.09} 1-0